bitfinex/quotes_BTCUSD_20251029
["timestamp","ask_amount","ask_price","bid_price","bid_amount"]
[1761765592227,0.52092083,111160.0,111150.0,0.00014449]
[1761765592431,0.18092083,111160.0,111150.0,0.00014449]
[1761765592641,0.51992083,111160.0,111150.0,0.00014449]
[1761765592857,0.17992083,111160.0,111150.0,0.00079819]
[1761765593510,0.17992083,111160.0,111150.0,0.27155422]
[1761765593718,0.17992083,111160.0,111150.0,0.0906172]
[1761765593929,0.17992083,111160.0,111150.0,0.27055422]
[1761765594141,0.17991893,111170.0,111150.0,0.27255422]
[1761765594355,0.17992083,111160.0,111150.0,0.27190052]
[1761765594569,0.21680187,111170.0,111150.0,0.27190052]
[1761765594776,0.17992083,111160.0,111150.0,0.27190052]
[1761765595192,0.1889105,111180.0,111160.0,0.17992083]
[1761765595393,0.17992083,111160.0,111150.0,0.27290052]
[1761765595546,0.17992083,111160.0,111150.0,0.26990052]
[1761765595749,0.17992083,111160.0,111150.0,0.27090052]
[1761765595961,0.17992083,111160.0,111150.0,0.27490052]
[1761765596166,0.17992083,111160.0,111150.0,0.27090052]
[1761765596366,0.17990465,111170.0,111150.0,0.26990052]
[1761765596567,0.17990465,111170.0,111160.0,0.18092083]
[1761765596778,0.17990465,111170.0,111150.0,0.27190052]
[1761765597125,0.17990465,111170.0,111150.0,0.27590052]
[1761765597332,0.17992083,111160.0,111150.0,0.27190052]
[1761765597583,0.17990465,111170.0,111150.0,0.27190052]
[1761765597813,0.17990465,111170.0,111150.0,0.31798557]
[1761765597940,0.1889105,111180.0,111160.0,0.17992083]
[1761765598555,0.17990465,111170.0,111160.0,0.18192083]
[1761765598763,0.1889105,111180.0,111160.0,0.18192083]
[1761765599033,0.17987229,111190.0,111170.0,0.17990465]
[1761765599237,0.17988846,111180.0,111170.0,0.17990465]
[1761765599471,0.18884912,111200.0,111180.0,0.17988846]
[1761765599704,0.1798727,111190.0,111170.0,0.31478811]
[1761765599924,0.17988846,111180.0,111170.0,0.13488346]
[1761765600338,0.17988846,111180.0,111170.0,0.08981901]
[1761765600550,0.17988846,111180.0,111170.0,0.09081901]
[1761765601248,0.17988846,111180.0,111170.0,0.001]
[1761765602155,0.17988846,111180.0,111170.0,0.003]
[1761765602381,0.17988846,111180.0,111160.0,0.17991926]
[1761765602590,0.17988846,111180.0,111170.0,0.001]
[1761765602795,0.17988846,111180.0,111170.0,0.003]
[1761765603151,0.18884912,111200.0,111180.0,0.17988846]
[1761765603366,0.18884912,111200.0,111170.0,0.27442366]
[1761765603367,0.17987229,111190.0,111170.0,0.27442366]
[1761765603583,0.17988846,111180.0,111170.0,0.27442366]
[1761765603793,0.17988846,111180.0,111170.0,0.14085298]
[1761765604010,0.17987229,111190.0,111170.0,0.27442366]
[1761765604441,0.17988846,111180.0,111170.0,0.27442366]
[1761765604864,0.17988846,111180.0,111170.0,0.27242366]
[1761765605079,0.17987229,111190.0,111170.0,0.27242366]
[1761765605293,0.17987229,111190.0,111170.0,0.35265745]
[1761765605713,0.17987229,111190.0,111170.0,0.1727528]
[1761765605922,0.17988846,111180.0,111170.0,0.09473687]
[1761765606204,0.26970747,111180.0,111170.0,0.00291786]
[1761765606431,0.26970747,111180.0,111170.0,0.00391786]
[1761765606877,0.26970747,111180.0,111170.0,0.00291786]
[1761765607107,0.31736934,111180.0,111170.0,0.00291786]
[1761765607336,0.65736934,111180.0,111170.0,0.00291786]
[1761765608208,0.65836934,111180.0,111170.0,0.00291786]
[1761765608831,0.66036934,111180.0,111170.0,0.00291786]
[1761765609263,0.66036934,111180.0,111110.0,0.02703895]
[1761765609264,0.37618228,111130.0,111080.0,2.0]
[1761765609474,0.18001142,111110.0,111090.0,0.08981901]
[1761765609687,0.180018,111100.0,111090.0,0.08981901]
[1761765609899,0.1800342,111090.0,111080.0,0.01055188]
[1761765610107,0.180018,111100.0,111080.0,0.08981901]
[1761765610543,0.1800342,111090.0,111080.0,0.10053758]
[1761765611008,0.1800342,111090.0,111080.0,0.08981901]
[1761765611268,0.18008237,111090.0,111080.0,0.08981901]
[1761765611940,0.18108237,111090.0,111080.0,0.09681901]
[1761765612184,0.18108237,111090.0,111080.0,0.10081901]
[1761765612425,0.18108237,111090.0,111080.0,0.011]
[1761765614100,0.18008237,111090.0,111070.0,0.53096105]
[1761765614335,0.18008237,111090.0,111080.0,0.004]
[1761765614580,0.18008237,111090.0,111080.0,0.001]
[1761765614798,0.18008237,111090.0,111070.0,0.6207766]
[1761765615016,0.18008237,111090.0,111080.0,0.004]
[1761765615441,0.18008237,111090.0,111080.0,0.0059624]
[1761765615657,0.18008237,111090.0,111080.0,0.0019624]
[1761765616081,0.18008237,111090.0,111080.0,0.27183182]
[1761765616082,4.817e-05,111090.0,111080.0,0.27183182]
[1761765616520,4.817e-05,111090.0,111080.0,0.74632536]
[1761765617393,4.817e-05,111090.0,111080.0,1.08632536]
[1761765617622,4.817e-05,111090.0,111080.0,3.09032536]
[1761765617834,4.817e-05,111090.0,111080.0,0.43678141]
[1761765618062,4.817e-05,111090.0,111080.0,0.61683182]
[1761765618277,4.817e-05,111090.0,111080.0,0.69761092]
[1761765618482,4.817e-05,111090.0,111080.0,1.17210446]
[1761765619372,4.817e-05,111090.0,111080.0,0.69761092]
[1761765619816,4.817e-05,111090.0,111080.0,3.20828674]
[1761765620879,4.817e-05,111090.0,111080.0,2.7337932]
[1761765621097,4.817e-05,111090.0,111080.0,0.61683182]
[1761765621324,0.18008237,111090.0,111080.0,0.0069624]
[1761765622420,0.26990138,111090.0,111080.0,0.0059624]
[1761765622673,0.65660335,111090.0,111080.0,0.0059624]
[1761765622903,0.74026567,111090.0,111080.0,1e-08]
[1761765623122,0.75026566,111090.0,111080.0,1e-08]
[1761765623339,0.52006662,111070.0,111060.0,0.0004]
[1761765623557,0.60988563,111070.0,111060.0,0.0004]
[1761765623778,0.18006662,111070.0,111060.0,0.0004]
[1761765624216,0.21607974,111070.0,111060.0,0.0004]
[1761765624427,0.18006662,111070.0,111060.0,0.0004]
[1761765625704,0.18006662,111070.0,111060.0,0.0014]
[1761765626356,0.18106662,111070.0,111060.0,0.0014]
[1761765626816,0.18006662,111070.0,111060.0,0.0014]
[1761765627051,0.18006662,111070.0,111060.0,0.0004]
[1761765627261,0.21520271,111070.0,111060.0,0.0014]
[1761765628341,0.1712943,111080.0,111060.0,0.18148227]
[1761765628556,0.18006662,111070.0,111060.0,0.0014]
[1761765629212,0.18005083,111080.0,111060.0,0.09165536]
[1761765629422,0.18005083,111080.0,111060.0,0.27130015]
[1761765629635,0.18908408,111090.0,111070.0,0.18006662]
[1761765629843,0.18105041,111080.0,111060.0,0.27130015]
[1761765630051,0.18005041,111080.0,111060.0,0.27030184]
[1761765630280,0.18106662,111070.0,111060.0,0.27030184]
[1761765630498,0.001,111070.0,111060.0,0.27030184]
[1761765631183,0.18005041,111080.0,111060.0,0.27030184]
[1761765631411,0.18005041,111080.0,111060.0,0.27130184]
[1761765631634,0.18005041,111080.0,111060.0,0.0014]
[1761765631635,0.18006662,111070.0,111060.0,0.0014]
[1761765631856,0.18006662,111070.0,111060.0,0.0004]
[1761765632496,0.18006662,111070.0,111060.0,0.0014]
[1761765633134,0.18006662,111070.0,111060.0,0.0004]
[1761765633353,0.22913131,111070.0,111060.0,0.0014]
[1761765633579,0.31895032,111070.0,111060.0,0.0014]
[1761765633791,0.31995032,111070.0,111060.0,0.0004]
[1761765634878,0.27088563,111070.0,111060.0,0.0004]
[1761765635086,0.27088563,111070.0,111060.0,0.0014]
[1761765635306,0.18106662,111070.0,111060.0,0.0014]
[1761765635542,0.18106662,111070.0,111060.0,0.00183635]
[1761765636161,0.18006662,111070.0,111060.0,0.00183635]
[1761765636585,0.22214941,111070.0,111060.0,0.00183635]
[1761765637030,0.18306662,111070.0,111060.0,0.00183635]
[1761765637450,0.18006662,111070.0,111060.0,0.00083635]
[1761765637665,0.22076124,111080.0,111060.0,0.00083635]
[1761765637666,0.18005041,111080.0,111060.0,0.00083635]
[1761765637912,0.18206662,111070.0,111060.0,0.0004]
[1761765638134,0.18006662,111070.0,111060.0,0.0004]
[1761765638350,0.18005041,111080.0,111060.0,0.18048283]
[1761765638571,0.18908549,111090.0,111070.0,0.18006662]
[1761765638836,4.817e-05,111090.0,111080.0,0.26986942]
[1761765639092,4.817e-05,111090.0,111080.0,3.08436296]
[1761765639773,4.817e-05,111090.0,111080.0,3.11141066]
[1761765640005,0.00104817,111090.0,111080.0,3.14759294]
[1761765640240,4.817e-05,111090.0,111080.0,3.20539569]
[1761765640457,0.18901401,111130.0,111100.0,0.18000391]
[1761765640678,0.18901401,111130.0,111110.0,0.26982081]
[1761765640679,0.1799856,111120.0,111110.0,0.26982081]
[1761765640894,0.1799694,111130.0,111110.0,0.26982081]
[1761765641342,0.1799856,111120.0,111110.0,0.08981901]
[1761765642217,0.1800018,111110.0,111100.0,0.0001443]
[1761765642423,0.1800018,111110.0,111100.0,0.08996331]
[1761765642636,0.21600054,111110.0,111100.0,0.0011443]
[1761765642857,0.1800018,111110.0,111100.0,0.0011443]
[1761765643048,0.1799856,111120.0,111100.0,0.1801623]
[1761765643321,0.1799856,111120.0,111110.0,0.002]
[1761765643530,0.18896787,111130.0,111110.0,0.1820018]
[1761765643740,0.18896787,111130.0,111110.0,0.1800018]
[1761765643920,0.18896787,111130.0,111110.0,0.31571921]
[1761765644153,0.18896787,111130.0,111110.0,0.26982081]
[1761765644386,0.1799856,111120.0,111110.0,0.26982081]
[1761765644607,0.18896787,111130.0,111110.0,0.26982081]
[1761765644810,0.18896787,111130.0,111120.0,0.1799856]
[1761765644811,0.1799694,111130.0,111120.0,0.1799856]
[1761765645041,0.17995408,111140.0,111120.0,0.26980461]
[1761765645277,0.17995408,111140.0,111120.0,0.28051989]
[1761765646000,0.17995408,111140.0,111120.0,0.28051868]
[1761765646210,0.17995408,111140.0,111130.0,0.08981901]
[1761765646693,0.18095408,111140.0,111130.0,0.08981901]
[1761765646933,0.18095321,111140.0,111130.0,0.26978841]
[1761765647182,0.18095321,111140.0,111130.0,0.08981901]
[1761765647422,0.18904583,111150.0,111130.0,0.26978841]
[1761765647687,0.00233988,111170.0,111150.0,0.17993683]
[1761765647915,0.00233988,111170.0,111160.0,0.08981901]
[1761765647916,0.18224453,111170.0,111160.0,0.08981901]
[1761765648612,0.00233988,111170.0,111160.0,0.26973984]
[1761765648836,0.18224453,111170.0,111160.0,0.13478668]
[1761765649067,0.18238907,111170.0,111160.0,0.13478668]
[1761765649275,0.18338907,111170.0,111160.0,0.13478668]
[1761765649521,0.18238907,111170.0,111160.0,0.13478668]
[1761765649764,0.18238907,111170.0,111160.0,0.26973984]
[1761765649765,0.00248442,111170.0,111160.0,0.26973984]
[1761765649982,0.18238907,111170.0,111160.0,0.09281901]
[1761765650204,0.18238907,111170.0,111160.0,0.18092083]
[1761765650430,0.00248442,111170.0,111160.0,0.18092083]
[1761765650654,0.18238907,111170.0,111160.0,0.18092083]
[1761765650843,0.18238907,111170.0,111160.0,0.18192083]
[1761765651116,0.00248442,111170.0,111160.0,0.18192083]
[1761765651328,0.18238907,111170.0,111160.0,0.18192083]
[1761765651569,0.00248442,111170.0,111160.0,0.18192083]
[1761765651803,0.18238907,111170.0,111160.0,0.002]
[1761765652012,0.00248442,111170.0,111160.0,0.18192083]
[1761765652239,0.18238907,111170.0,111160.0,0.18092083]
[1761765652455,0.00248442,111170.0,111160.0,0.18092083]
[1761765652690,0.00248442,111170.0,111160.0,0.30682561]
[1761765652926,0.00248442,111170.0,111160.0,1.08523338]
[1761765653171,0.1799323,111220.0,111200.0,0.17984378]
[1761765653172,0.1798249,111220.0,111200.0,0.17984378]
[1761765653453,0.1798249,111220.0,111190.0,0.66332832]
[1761765653454,0.17983994,111210.0,111190.0,0.17986843]
[1761765653682,0.17985611,111200.0,111190.0,0.08342071]
[1761765653893,0.18883193,111210.0,111190.0,0.17987148]
[1761765654116,0.17984066,111210.0,111190.0,0.17987148]
[1761765654343,0.17985611,111200.0,111190.0,0.17987229]
[1761765654572,0.18384066,111210.0,111190.0,0.65436583]
[1761765654781,0.17985611,111200.0,111180.0,1.0033764]
[1761765655013,0.17985611,111200.0,111180.0,1.09319541]
[1761765655234,0.17985611,111200.0,111180.0,0.61870187]
[1761765655990,0.18185611,111200.0,111190.0,0.17987229]
[1761765656193,0.003,111200.0,111190.0,0.17987229]
[1761765656401,0.001,111200.0,111190.0,0.17987229]
[1761765656692,0.002,111200.0,111190.0,0.65436583]
[1761765656924,0.0002,111240.0,111230.0,0.1798076]
[1761765657155,0.00034443,111240.0,111230.0,0.65430114]
[1761765657386,0.00034443,111240.0,111230.0,0.1798076]
[1761765657792,0.00034443,111240.0,111230.0,0.65430114]
[1761765658833,0.00034443,111240.0,111230.0,0.66512474]
[1761765659039,0.00034443,111240.0,111230.0,0.83943718]
[1761765659256,0.00034443,111240.0,111230.0,0.36494364]
[1761765659470,0.00186842,111240.0,111230.0,0.36794364]
[1761765659692,0.00186842,111240.0,111230.0,0.84243718]
[1761765659915,0.00186842,111240.0,111230.0,0.36494364]
[1761765660141,0.00186842,111240.0,111230.0,0.37194364]
[1761765660353,0.00186842,111240.0,111230.0,0.84643718]
[1761765663377,0.18165986,111240.0,111230.0,0.10231703]
[1761765663599,0.18165986,111240.0,111230.0,0.1976312]
[1761765663802,0.00186842,111240.0,111230.0,0.1976312]
[1761765664007,0.00186842,111240.0,111230.0,0.28745021]
[1761765664295,0.19514421,111240.0,111220.0,0.02701521]
[1761765664516,0.1798076,111230.0,111220.0,0.02701521]
[1761765664722,0.1798076,111230.0,111220.0,0.26260828]
[1761765665358,0.18013587,111240.0,111220.0,0.73710182]
[1761765665575,0.18013587,111240.0,111220.0,0.73810182]
[1761765665792,0.18013587,111240.0,111230.0,0.003]
[1761765666443,0.1798076,111230.0,111220.0,0.18182377]
[1761765666652,0.18013587,111240.0,111220.0,0.74913632]
[1761765666861,0.18013587,111240.0,111220.0,0.27164278]
[1761765667074,0.1798076,111230.0,111220.0,0.27164278]
[1761765667298,0.00034443,111240.0,111230.0,0.001]
[1761765667533,0.00034443,111240.0,111230.0,0.74412015]
[1761765667747,0.00034443,111240.0,111230.0,0.74512015]
[1761765668169,0.18013587,111240.0,111230.0,0.09081901]
[1761765668385,0.18013587,111240.0,111230.0,0.08981901]
[1761765668626,0.17981781,111230.0,111210.0,0.53067884]
[1761765668848,0.18013587,111240.0,111220.0,0.27064278]
[1761765669061,0.1798076,111230.0,111220.0,0.16995117]
[1761765669277,0.18013587,111240.0,111220.0,0.17982377]
[1761765669486,0.18013587,111240.0,111230.0,0.1808076]
[1761765669694,0.17981654,111230.0,111210.0,0.53967083]
[1761765669930,0.17981654,111230.0,111210.0,0.08981901]
[1761765670144,0.18091253,111220.0,111200.0,2.17985598]
[1761765670349,0.16924726,111230.0,111210.0,0.1798391]
[1761765670556,0.16924726,111230.0,111200.0,0.60967371]
[1761765670557,0.17982377,111220.0,111200.0,0.60967371]
[1761765670948,0.16924726,111230.0,111210.0,0.17983994]
[1761765671317,0.17982377,111220.0,111200.0,0.61167371]
[1761765671745,0.17982377,111220.0,111200.0,0.61977247]
[1761765671969,0.17982377,111220.0,111200.0,0.61977303]
[1761765672176,0.17982377,111220.0,111210.0,0.18083994]
[1761765672570,0.16924726,111230.0,111210.0,0.18083994]
[1761765672799,0.17982377,111220.0,111210.0,0.18083994]
[1761765673061,0.17982377,111220.0,111210.0,0.001]
[1761765675301,0.17782377,111220.0,111210.0,0.001]
[1761765675518,0.17782377,111220.0,111200.0,0.001]
[1761765675519,0.17983994,111210.0,111200.0,0.001]
[1761765675734,0.26965895,111210.0,111200.0,0.001]
[1761765676447,0.17990257,111180.0,111160.0,0.22957937]
[1761765676657,0.17990465,111170.0,111160.0,0.31939838]
[1761765676866,0.17990257,111180.0,111160.0,0.37022679]
[1761765677079,0.17990465,111170.0,111160.0,0.37022679]
[1761765677297,0.17990465,111170.0,111160.0,0.36123078]
[1761765677699,0.17990465,111170.0,111160.0,0.03090799]
[1761765678334,0.17990465,111170.0,111160.0,0.21082882]
[1761765678546,0.17990465,111170.0,111160.0,0.03390799]
[1761765678763,0.17990465,111170.0,111160.0,0.03790799]
[1761765678983,0.17990257,111180.0,111160.0,0.21782882]
[1761765679207,0.17990465,111170.0,111160.0,0.07869694]
[1761765679410,0.15289593,111170.0,111160.0,0.03790799]
[1761765679943,0.15289593,111170.0,111160.0,0.03390799]
[1761765680734,0.15289593,111170.0,111160.0,0.03090799]
[1761765680966,0.15289593,111170.0,111160.0,0.03290799]
[1761765683486,0.17995321,111140.0,111130.0,0.00248387]
[1761765684199,0.1904838,111140.0,111130.0,0.00248387]
[1761765684403,0.31648509,111140.0,111130.0,0.00248387]
[1761765684823,0.65648509,111140.0,111130.0,0.00248387]
[1761765685038,0.66148509,111140.0,111130.0,0.00248387]
[1761765685428,0.66148509,111140.0,111130.0,1e-08]
[1761765685634,0.66548509,111140.0,111130.0,1e-08]
[1761765685839,0.66748509,111140.0,111130.0,1e-08]
[1761765686314,0.66548509,111140.0,111130.0,1e-08]
[1761765686568,0.1800342,111090.0,111080.0,0.199611]
[1761765686770,0.1800342,111090.0,111080.0,0.1997553]
[1761765686996,0.1800342,111090.0,111080.0,0.18019471]
[1761765687200,0.1800342,111090.0,111080.0,0.0001443]
[1761765687411,0.1800342,111090.0,111080.0,0.19076934]
[1761765687634,0.1800342,111090.0,111080.0,0.0001443]
[1761765687882,0.1800342,111090.0,111080.0,0.18019471]
[1761765688100,0.180018,111100.0,111080.0,0.18019471]
[1761765688311,0.1800342,111090.0,111080.0,0.0001443]
[1761765688519,0.1800342,111090.0,111080.0,0.18019471]
[1761765688734,0.1800342,111090.0,111080.0,0.0001443]
[1761765688972,0.1800342,111090.0,111080.0,0.0021443]
[1761765689434,0.1800342,111090.0,111080.0,0.18219471]
[1761765689845,0.1800342,111090.0,111080.0,0.0041443]
[1761765690523,0.1800342,111090.0,111080.0,0.18419471]
[1761765690726,0.18901618,111110.0,111080.0,0.18419471]
[1761765690946,0.180018,111100.0,111080.0,0.18419471]
[1761765691548,0.1800342,111090.0,111080.0,0.0041443]
[1761765691750,0.1800342,111090.0,111080.0,0.18019471]
[1761765692342,0.18001855,111100.0,111080.0,0.18128513]
[1761765692494,0.18001855,111100.0,111080.0,0.18019471]
[1761765692697,0.18001855,111100.0,111090.0,0.1800342]
[1761765692900,0.18901618,111110.0,111090.0,0.1800342]
[1761765693114,0.180018,111100.0,111090.0,0.1800342]
[1761765693624,0.180018,111100.0,111080.0,0.91250459]
[1761765693823,0.180018,111100.0,111080.0,0.27001372]
[1761765694224,0.1800342,111090.0,111080.0,0.27001351]
[1761765694468,0.180018,111100.0,111090.0,0.1800342]
[1761765694622,0.180018,111100.0,111090.0,0.001]
[1761765695041,0.180018,111100.0,111080.0,0.27001351]
[1761765695363,0.180018,111100.0,111090.0,0.1800342]
[1761765696377,0.180018,111100.0,111080.0,0.27101351]
[1761765696996,0.180018,111100.0,111090.0,0.1800342]
[1761765697401,0.181018,111100.0,111090.0,0.1800342]
[1761765697609,0.001,111100.0,111090.0,0.1800342]
[1761765697809,0.001,111100.0,111090.0,1.00216309]
[1761765698014,0.002,111100.0,111090.0,0.27072547]
[1761765699234,0.18000301,111110.0,111100.0,0.180018]
[1761765699625,0.18000301,111110.0,111100.0,0.18067213]
[1761765699806,0.18901252,111120.0,111100.0,0.18067213]
[1761765700008,0.1800018,111110.0,111100.0,0.180018]
[1761765700587,0.1810018,111110.0,111100.0,0.180018]
[1761765700945,0.001,111110.0,111100.0,0.180018]
[1761765701152,0.001,111110.0,111100.0,3.04713401]
[1761765702582,0.001,111110.0,111100.0,3.38713401]
[1761765703023,0.001,111110.0,111100.0,2.65482413]
[1761765703298,0.001,111110.0,111100.0,3.38713401]
[1761765703511,0.001,111110.0,111100.0,3.42331629]
[1761765704356,0.001,111110.0,111100.0,3.42336629]
[1761765704605,0.001,111110.0,111100.0,3.42636629]
[1761765705358,0.17995366,111140.0,111120.0,0.1799856]
[1761765705554,0.17995366,111140.0,111120.0,0.26980461]
[1761765705946,0.1799694,111130.0,111110.0,2.1800018]
[1761765706145,0.1799694,111130.0,111110.0,0.26982081]
[1761765706352,0.1799856,111120.0,111100.0,1.07835988]
[1761765706527,0.1800018,111110.0,111100.0,0.27303131]
[1761765706891,0.1800018,111110.0,111100.0,0.27003131]
[1761765707103,0.1799856,111120.0,111100.0,0.27003131]
[1761765707695,0.1799856,111120.0,111110.0,0.1800018]
[1761765707826,0.1799856,111120.0,111100.0,0.27003131]
[1761765708033,0.17772166,111130.0,111110.0,0.1800018]
[1761765708457,0.1799856,111120.0,111110.0,0.1840018]
[1761765709020,0.001,111120.0,111110.0,0.1840018]
[1761765709855,0.1799856,111120.0,111110.0,0.004]
[1761765710314,0.1799856,111120.0,111110.0,0.1860018]
[1761765710540,0.17996999,111130.0,111110.0,0.1860018]
[1761765710908,0.17996999,111130.0,111120.0,0.18020361]
[1761765711120,0.17996999,111130.0,111120.0,0.00021801]
[1761765711779,0.17996999,111130.0,111120.0,0.18020361]
[1761765712232,0.17996999,111130.0,111120.0,0.00021801]
[1761765712430,0.21686212,111130.0,111120.0,0.00021801]
[1761765713235,0.21686212,111130.0,111120.0,0.00121801]
[1761765713440,0.18296999,111130.0,111120.0,0.00121801]
[1761765713657,0.18296999,111130.0,111120.0,0.00021801]
[1761765714542,0.17996999,111130.0,111120.0,0.00021801]
[1761765714960,0.18396999,111130.0,111120.0,0.00021801]
[1761765715178,0.18396999,111130.0,111120.0,0.18020361]
[1761765715393,0.18396999,111130.0,111120.0,0.00021801]
[1761765715629,0.18496999,111130.0,111120.0,0.18020361]
[1761765715851,0.005,111130.0,111120.0,0.18020361]
[1761765716073,0.1849694,111130.0,111120.0,0.18020361]
[1761765716739,0.1839694,111130.0,111120.0,0.18020361]
[1761765717640,0.1839694,111130.0,111120.0,0.00021801]
[1761765717862,0.2839694,111130.0,111120.0,0.00021801]
[1761765718539,0.2839694,111130.0,111120.0,0.18020361]
[1761765719419,0.2839694,111130.0,111120.0,1.0023325]
[1761765719420,0.104,111130.0,111120.0,1.0023325]
[1761765719648,0.104,111130.0,111120.0,0.27002262]
[1761765720565,0.104,111130.0,111120.0,0.18020361]
[1761765720814,0.2839694,111130.0,111120.0,0.18020361]
[1761765721240,0.2799694,111130.0,111120.0,0.00021801]
[1761765721657,0.2809694,111130.0,111120.0,0.00021801]
[1761765722079,0.2809694,111130.0,111120.0,0.18020361]
[1761765722320,0.102,111130.0,111120.0,0.18020361]
[1761765722533,0.102,111130.0,111120.0,1.0023325]
[1761765722751,0.102,111130.0,111120.0,3.0023325]
[1761765723402,0.102,111130.0,111120.0,2.27002262]
[1761765723844,0.102,111130.0,111120.0,3.0023325]
[1761765724939,0.102,111130.0,111120.0,3.37851478]
[1761765726225,0.102,111130.0,111120.0,3.38051478]
[1761765726442,0.17988846,111180.0,111160.0,0.17990038]
[1761765726657,0.18897382,111190.0,111180.0,0.17988846]
[1761765726658,0.01941089,111190.0,111180.0,0.17988846]
[1761765726875,0.1799306,111200.0,111180.0,0.17988846]
[1761765727100,0.18835228,111200.0,111190.0,0.17987229]
[1761765727573,0.18827779,111200.0,111190.0,0.17987229]
[1761765727789,0.18000055,111200.0,111190.0,0.17987229]
[1761765728210,0.00014444,111200.0,111190.0,0.17987229]
[1761765728598,0.00114444,111200.0,111190.0,0.17987229]
[1761765729100,0.17988181,111190.0,111180.0,2.0]
[1761765729312,0.18200055,111200.0,111190.0,0.17987229]
[1761765729525,0.00214444,111200.0,111190.0,0.17987229]
[1761765729735,0.18100055,111200.0,111190.0,0.17987229]
[1761765729950,0.00014444,111200.0,111190.0,0.21584836]
[1761765730170,0.00014444,111200.0,111190.0,1.03797725]
[1761765730395,0.00014444,111200.0,111190.0,3.03897725]
[1761765730614,0.18879881,111230.0,111220.0,0.17982377]
[1761765730824,0.00888722,111230.0,111220.0,0.21578853]
[1761765731061,0.00048144,111230.0,111220.0,0.21578853]
[1761765731279,0.00048144,111230.0,111220.0,0.12578377]
[1761765731501,0.18028904,111230.0,111220.0,0.59906097]
[1761765731728,0.00048144,111230.0,111220.0,0.30560754]
[1761765732156,0.00048144,111230.0,111220.0,3.27888474]
[1761765732384,0.23603873,111270.0,111220.0,3.27888474]
[1761765732385,0.20388006,111270.0,111240.0,2.0]
[1761765732615,0.20388006,111270.0,111250.0,0.65304402]
[1761765732616,0.19934608,111270.0,111250.0,0.65304402]
[1761765732837,0.00297525,111270.0,111250.0,0.74286303]
[1761765733057,0.00021759,111260.0,111250.0,0.26958583]
[1761765733272,0.00021759,111260.0,111250.0,0.74286303]
[1761765733520,0.00021759,111260.0,111250.0,0.78892307]
[1761765733784,0.0002,111280.0,111270.0,0.17974296]
[1761765734025,0.0002,111280.0,111270.0,3.08283917]
[1761765734234,0.0002,111300.0,111290.0,0.65298786]
[1761765734451,0.0002,111300.0,111290.0,1.11877163]
[1761765734705,0.00107004,111300.0,111290.0,1.11877163]
[1761765734947,0.01436061,111300.0,111290.0,1.11877163]
[1761765736215,0.01436061,111300.0,111290.0,0.12578377]
[1761765736465,0.19405512,111300.0,111290.0,0.12578377]
[1761765736707,0.19405512,111300.0,111290.0,0.002]
[1761765736951,0.19405512,111300.0,111290.0,0.007]
[1761765737188,0.19405512,111300.0,111290.0,0.002]
[1761765737436,0.19405512,111300.0,111290.0,0.18171066]
[1761765737674,0.19405512,111300.0,111290.0,0.18271066]
[1761765737912,0.19405512,111300.0,111290.0,0.002]
[1761765738160,0.19405512,111300.0,111290.0,0.18071066]
[1761765738402,0.19405512,111300.0,111290.0,0.001]
[1761765739622,0.17972616,111290.0,111260.0,0.24662869]
[1761765739879,0.17972681,111280.0,111270.0,0.08981901]
[1761765740126,0.19159639,111280.0,111270.0,0.08981901]
[1761765740621,0.19159639,111280.0,111260.0,0.22790245]
[1761765740860,0.17972681,111280.0,111260.0,0.31772146]
[1761765741121,0.0092426,111270.0,111260.0,0.31772146]
[1761765741369,0.18898556,111270.0,111260.0,0.31772146]
[1761765741906,0.18898556,111270.0,111260.0,0.31772256]
[1761765742765,0.18898556,111270.0,111260.0,0.13796344]
[1761765742984,0.17975912,111260.0,111240.0,0.18878101]
[1761765743192,0.17975912,111260.0,111250.0,0.08981901]
[1761765743615,0.17977528,111250.0,111240.0,0.00014443]
[1761765744077,0.18907943,111250.0,111240.0,0.00014443]
[1761765745196,0.18907943,111250.0,111240.0,0.00114443]
[1761765745639,0.18907943,111250.0,111240.0,0.00014443]
[1761765746061,0.19107943,111250.0,111240.0,0.00314443]
[1761765746294,0.19107943,111250.0,111240.0,0.00014443]
[1761765746716,0.19207943,111250.0,111240.0,0.00014443]
[1761765746895,0.19107943,111250.0,111240.0,0.00014443]
[1761765747033,0.18907943,111250.0,111240.0,0.00014443]
[1761765747525,0.19107943,111250.0,111240.0,0.17993587]
[1761765747937,0.18907943,111250.0,111240.0,0.00014443]
[1761765748141,0.19007943,111250.0,111240.0,0.00014443]
[1761765748350,0.19007943,111250.0,111240.0,0.19650382]
[1761765748564,0.19007943,111250.0,111240.0,0.01671238]
[1761765748773,0.18907943,111250.0,111240.0,0.03636428]
[1761765748892,0.18907943,111250.0,111240.0,0.03736428]
[1761765749317,0.18907943,111250.0,111240.0,0.21615572]
[1761765749699,0.18907943,111250.0,111240.0,0.30697473]
[1761765749907,0.00930415,111250.0,111240.0,0.30597473]
[1761765750114,0.17996053,111270.0,111260.0,0.17975912]
[1761765750355,0.18962998,111270.0,111260.0,0.32209808]
[1761765750764,0.18962998,111270.0,111260.0,0.14233896]
[1761765750974,0.00988702,111270.0,111260.0,0.32209808]
[1761765751190,0.00988702,111270.0,111260.0,1.13537528]
[1761765751393,0.00988702,111270.0,111260.0,3.13537528]
[1761765751820,0.00988702,111270.0,111260.0,2.95561616]
[1761765752028,0.00988702,111270.0,111260.0,0.66209808]
[1761765752231,0.18962998,111270.0,111260.0,0.14433896]
[1761765752429,0.18962998,111270.0,111260.0,0.32909808]
[1761765752657,0.18962998,111270.0,111260.0,0.14933896]
[1761765752873,0.18962998,111270.0,111260.0,0.05951995]
[1761765753291,0.18962998,111270.0,111260.0,0.02356795]
[1761765756081,0.18962998,111270.0,111260.0,0.20332707]
[1761765756082,0.00988702,111270.0,111260.0,0.20332707]
[1761765756508,0.18962998,111270.0,111260.0,0.02356795]
[1761765756881,0.18962998,111270.0,111260.0,0.20332707]
[1761765757085,0.00988702,111270.0,111260.0,0.20332707]
[1761765757282,0.18962998,111270.0,111260.0,0.24163729]
[1761765757483,0.00988702,111270.0,111260.0,0.24163729]
[1761765757699,0.00988702,111270.0,111260.0,0.3314563]
[1761765758410,0.18962998,111270.0,111260.0,0.3314563]
[1761765759184,0.00988702,111270.0,111260.0,0.3314563]
[1761765759384,0.18962998,111270.0,111260.0,0.3314563]
[1761765760338,0.00988702,111270.0,111260.0,0.3314563]
[1761765761251,0.18962998,111270.0,111260.0,0.3314563]
[1761765761889,0.00988702,111270.0,111260.0,0.3314563]
[1761765762520,0.00988702,111270.0,111260.0,3.1447335]
[1761765764629,0.18887923,111300.0,111290.0,0.17971066]
[1761765764630,0.17989552,111300.0,111290.0,0.17971066]
[1761765764839,0.19018164,111300.0,111290.0,0.22920465]
[1761765765050,0.19018063,111300.0,111290.0,0.22920465]
[1761765765508,0.19018063,111300.0,111290.0,0.04949399]
[1761765765712,0.19018063,111300.0,111290.0,0.17971066]
[1761765765931,0.19118063,111300.0,111290.0,0.18973184]